bitfinex/quotes_BTCUSD_20251015
["timestamp","ask_amount","ask_price","bid_price","bid_amount"]
[1760541835578,0.19117474,111100.0,111090.0,0.1148]
[1760541835791,0.34,111110.0,111090.0,0.1148]
[1760541836017,0.18908029,111120.0,111100.0,0.180018]
[1760541836246,0.18905718,111130.0,111100.0,0.1800148]
[1760541836475,0.18905718,111130.0,111110.0,0.1148]
[1760541836705,0.18905718,111130.0,111110.0,0.17999792]
[1760541836959,0.18905718,111130.0,111120.0,0.1148]
[1760541837178,0.17998759,111120.0,111100.0,0.27870582]
[1760541837394,0.17998759,111120.0,111110.0,0.1148]
[1760541837609,0.17998759,111120.0,111090.0,0.0717521]
[1760541837610,0.1800018,111110.0,111090.0,0.0717521]
[1760541837815,0.1800018,111110.0,111100.0,0.1148]
[1760541838026,0.180018,111100.0,111090.0,0.1258724]
[1760541838280,0.18005041,111080.0,111070.0,0.0717521]
[1760541838487,0.18005041,111080.0,111070.0,0.1976245]
[1760541838702,0.18005041,111080.0,111060.0,0.4]
[1760541838912,0.18005041,111080.0,111070.0,0.1148]
[1760541839115,0.18005041,111080.0,111060.0,0.48969012]
[1760541839323,0.18006662,111070.0,111060.0,0.48969012]
[1760541839584,0.18006662,111070.0,111060.0,0.5258724]
[1760541839784,0.18006662,111070.0,111060.0,0.6406724]
[1760541839991,0.18005041,111080.0,111060.0,0.5258724]
[1760541840210,0.29486662,111070.0,111060.0,0.4]
[1760541840415,0.29486662,111070.0,111040.0,0.41668521]
[1760541840416,0.18009559,111060.0,111040.0,0.18011474]
[1760541840620,0.18009559,111060.0,111040.0,0.08969012]
[1760541840841,0.29489905,111050.0,111040.0,0.48969012]
[1760541841681,0.29489905,111050.0,111040.0,0.5258724]
[1760541841885,0.1148,111050.0,111040.0,0.70598767]
[1760541842102,0.19094934,111060.0,111040.0,0.5278724]
[1760541842322,0.29489905,111050.0,111040.0,0.5278724]
[1760541842540,0.18009559,111060.0,111040.0,0.70598735]
[1760541842748,0.52007171,111070.0,111050.0,0.30596734]
[1760541843011,0.18905293,111080.0,111060.0,0.18008283]
[1760541843238,0.1890395,111090.0,111060.0,0.18008171]
[1760541843481,0.29485054,111080.0,111060.0,0.18008171]
[1760541843694,0.1148,111070.0,111060.0,0.26977183]
[1760541843927,0.19972751,111090.0,111070.0,0.18006633]
[1760541843928,0.1890395,111090.0,111070.0,0.18006633]
[1760541844154,0.18003607,111090.0,111070.0,0.30593873]
[1760541844379,0.29483669,111090.0,111070.0,1.44071214]
[1760541844629,0.29483669,111090.0,111070.0,0.82073873]
[1760541845243,0.29483669,111090.0,111070.0,0.6406724]
[1760541845447,0.18005041,111080.0,111070.0,0.5258724]
[1760541845654,0.18005041,111080.0,111070.0,0.1258724]
[1760541845910,0.29485041,111080.0,111070.0,0.03618228]
[1760541846130,0.1890189,111100.0,111070.0,0.5258724]
[1760541846341,0.18904653,111110.0,111080.0,0.21622656]
[1760541846544,0.18904653,111110.0,111080.0,0.03618228]
[1760541846545,0.20252219,111100.0,111080.0,0.03618228]
[1760541846749,0.2948342,111090.0,111080.0,0.03618228]
[1760541846882,0.1800342,111090.0,111080.0,0.03618228]
[1760541847094,0.1800342,111090.0,111070.0,0.5268724]
[1760541847299,0.1800342,111090.0,111070.0,0.70693722]
[1760541847494,0.1800342,111090.0,111070.0,0.70693826]
[1760541847679,0.2948342,111090.0,111070.0,0.70693826]
[1760541848112,0.18005041,111080.0,111070.0,0.5258724]
[1760541848520,0.2948342,111090.0,111070.0,0.70593758]
[1760541848726,0.1800342,111090.0,111070.0,0.70593758]
[1760541848925,0.2948342,111090.0,111070.0,0.70593758]
[1760541849128,0.18005041,111080.0,111070.0,0.5258724]
[1760541849347,0.2948342,111090.0,111070.0,0.70593891]
[1760541849695,0.2948342,111090.0,111070.0,0.5258724]
[1760541849881,0.2948342,111090.0,111070.0,0.70593879]
[1760541850084,0.2948342,111090.0,111070.0,0.5258724]
[1760541850319,0.18005041,111080.0,111070.0,0.2737724]
[1760541850781,0.18005041,111080.0,111070.0,0.6737724]
[1760541851069,0.2948342,111090.0,111070.0,0.85383902]
[1760541851343,0.18904653,111110.0,111080.0,0.21623252]
[1760541851541,0.29482932,111100.0,111080.0,0.21623252]
[1760541851973,0.1148,111100.0,111090.0,0.1800342]
[1760541852181,0.25,111090.0,111080.0,0.30592264]
[1760541852391,0.25,111090.0,111080.0,0.1258724]
[1760541853020,0.4300342,111090.0,111080.0,0.1258724]
[1760541853635,0.4300342,111090.0,111080.0,0.2406324]
[1760541854217,0.4300342,111090.0,111080.0,0.5258724]
[1760541854424,0.25,111090.0,111080.0,0.5258724]
[1760541854633,0.4300342,111090.0,111080.0,0.5278724]
[1760541855087,0.4300342,111090.0,111080.0,0.5268724]
[1760541855301,0.4300342,111090.0,111080.0,0.5278724]
[1760541855507,0.25,111090.0,111080.0,0.70792281]
[1760541855716,0.25,111090.0,111080.0,0.82268281]
[1760541855926,0.25,111090.0,111080.0,0.70792281]
[1760541856361,0.25,111090.0,111080.0,0.82268281]
[1760541856593,0.25,111090.0,111080.0,0.5278724]
[1760541856815,0.23535884,111090.0,111080.0,6.44269622]
[1760541857036,0.23535884,111090.0,111080.0,6.55745622]
[1760541857251,0.23535884,111090.0,111080.0,1.44269622]
[1760541857488,0.23535884,111090.0,111080.0,6.78269622]
[1760541857722,0.23535884,111090.0,111080.0,7.59638143]
[1760541857957,0.23535884,111090.0,111080.0,7.71414143]
[1760541858181,0.23535884,111090.0,111080.0,7.59938143]
[1760541858182,0.20832829,111090.0,111080.0,7.59938143]
[1760541858418,0.18129774,111090.0,111080.0,7.59938143]
[1760541858687,0.15426719,111090.0,111080.0,7.59938143]
[1760541858901,0.10020609,111090.0,111080.0,7.71414143]
[1760541859126,0.07317554,111090.0,111080.0,7.59938143]
[1760541859351,0.04614499,111090.0,111080.0,7.71414143]
[1760541859576,0.01911444,111090.0,111080.0,7.59938143]
[1760541860074,0.01911444,111090.0,111080.0,6.90045622]
[1760541860288,0.01911444,111090.0,111080.0,6.78569622]
[1760541860503,0.01911444,111090.0,111080.0,1.78569622]
[1760541860932,0.01911444,111090.0,111080.0,1.90045622]
[1760541861175,0.01911444,111090.0,111080.0,1.78569622]
[1760541861810,0.01911444,111090.0,111080.0,1.90045622]
[1760541862027,0.01911444,111090.0,111080.0,1.78569622]
[1760541862251,0.01911444,111090.0,111080.0,0.70792281]
[1760541862480,0.01911444,111090.0,111080.0,0.49169012]
[1760541862700,0.01911444,111090.0,111080.0,0.70792281]
[1760541863335,0.01911444,111090.0,111080.0,0.67174053]
[1760541863558,0.01911444,111090.0,111080.0,0.5278724]
[1760541863559,0.19914864,111090.0,111080.0,0.5278724]
[1760541863787,0.19914864,111090.0,111080.0,0.1278724]
[1760541864251,0.19914864,111090.0,111080.0,0.11676]
[1760541864465,0.19914864,111090.0,111080.0,0.002]
[1760541864887,0.19914864,111090.0,111080.0,0.001]
[1760541865139,0.23706614,111090.0,111080.0,0.001]
[1760541865352,0.35182614,111090.0,111080.0,0.001]
[1760541865572,0.19914864,111090.0,111080.0,0.001]
[1760541865781,0.31390864,111090.0,111080.0,0.001]
[1760541866856,0.18005041,111080.0,111070.0,0.03618228]
[1760541867062,0.18005041,111080.0,111060.0,0.43618228]
[1760541867063,0.18006662,111070.0,111060.0,0.43618228]
[1760541867272,0.18006662,111070.0,111060.0,0.5258724]
[1760541867982,0.18005041,111080.0,111060.0,0.70595523]
[1760541868201,0.32291041,111090.0,111070.0,0.18106662]
[1760541868416,0.19914864,111090.0,111070.0,0.27075674]
[1760541868636,0.18005041,111080.0,111070.0,0.2416324]
[1760541868849,0.18005041,111080.0,111070.0,0.1268724]
[1760541869072,0.18005041,111080.0,111070.0,0.001]
[1760541869295,0.29481041,111080.0,111060.0,0.43718228]
[1760541869508,0.18006662,111070.0,111060.0,0.5278724]
[1760541869728,0.19532837,111070.0,111060.0,0.5278724]
[1760541869946,0.18006662,111070.0,111060.0,0.5278724]
[1760541870163,0.18006662,111070.0,111060.0,0.1258724]
[1760541870383,0.23655765,111070.0,111050.0,0.03618228]
[1760541870607,0.18906995,111070.0,111050.0,0.30597129]
[1760541870823,0.18907007,111070.0,111050.0,0.82073129]
[1760541871029,0.18907007,111070.0,111060.0,0.001]
[1760541871241,0.18907007,111070.0,111060.0,0.002]
[1760541871460,0.01911444,111090.0,111070.0,0.18006547]
[1760541871668,0.53914991,111090.0,111070.0,0.26975559]
[1760541872124,0.01911444,111090.0,111080.0,0.30592281]
[1760541872341,0.01911444,111090.0,111080.0,0.2406324]
[1760541872561,0.19914864,111090.0,111080.0,0.1258724]
[1760541872985,0.01911444,111090.0,111080.0,0.30592281]
[1760541873195,0.19914864,111090.0,111080.0,0.1258724]
[1760541874257,0.01911444,111090.0,111080.0,0.42068281]
[1760541874470,0.01911444,111090.0,111080.0,0.30592281]
[1760541874678,0.01911444,111090.0,111080.0,0.70592281]
[1760541874893,0.01911444,111090.0,111080.0,0.82068281]
[1760541875116,0.01911444,111090.0,111080.0,0.70592281]
[1760541875601,0.01911444,111090.0,111080.0,0.82068281]
[1760541875836,0.01911444,111090.0,111080.0,0.70592281]
[1760541876496,0.01911444,111090.0,111080.0,0.5258724]
[1760541876709,0.19914864,111090.0,111080.0,0.5258724]
[1760541876917,0.19914864,111090.0,111080.0,0.5268724]
[1760541877141,0.19914864,111090.0,111080.0,0.6415924]
[1760541877354,0.01911444,111090.0,111080.0,0.70792281]
[1760541878395,0.01911444,111090.0,111080.0,0.70692281]
[1760541878610,0.01911444,111090.0,111080.0,0.82164281]
[1760541878809,0.01911444,111090.0,111080.0,0.70792281]
[1760541879014,0.01911444,111090.0,111080.0,0.70692281]
[1760541879218,0.01911444,111090.0,111080.0,0.82064281]
[1760541879422,0.01911444,111090.0,111080.0,1.18038944]
[1760541879644,0.01911444,111090.0,111080.0,1.18138944]
[1760541880071,0.01911444,111090.0,111080.0,1.18238944]
[1760541880291,0.19914864,111090.0,111080.0,1.00233903]
[1760541880496,0.01911444,111090.0,111080.0,0.82264281]
[1760541880704,0.01911444,111090.0,111080.0,0.6425924]
[1760541880917,0.01911444,111090.0,111080.0,0.70792281]
[1760541881338,0.01911444,111090.0,111080.0,0.82264281]
[1760541881553,0.01911444,111090.0,111080.0,0.70792281]
[1760541881989,0.01911444,111090.0,111080.0,1.29710944]
[1760541882217,0.01911444,111090.0,111080.0,0.82264281]
[1760541882425,0.19914864,111090.0,111080.0,0.5278724]
[1760541882631,0.01911444,111090.0,111080.0,0.5278724]
[1760541882880,0.19914864,111090.0,111080.0,0.5278724]
[1760541883087,0.19914864,111090.0,111080.0,0.70792281]
[1760541883088,0.01911444,111090.0,111080.0,0.70792281]
[1760541883542,0.01911444,111090.0,111080.0,1.18238944]
[1760541884207,0.01911444,111090.0,111080.0,1.29710944]
[1760541884845,0.01911444,111090.0,111080.0,1.18238944]
[1760541885495,0.01911444,111090.0,111080.0,1.29710944]
[1760541885911,0.01911444,111090.0,111080.0,1.18238944]
[1760541886120,0.01911444,111090.0,111080.0,1.29710944]
[1760541886324,0.01911444,111090.0,111080.0,1.18238944]
[1760541886750,0.01911444,111090.0,111080.0,6.29710944]
[1760541886975,0.01911444,111090.0,111080.0,6.52238944]
[1760541887904,0.01911444,111090.0,111080.0,6.63710944]
[1760541888332,0.01911444,111090.0,111080.0,6.52238944]
[1760541888780,0.01911444,111090.0,111080.0,6.63710944]
[1760541889002,0.01911444,111090.0,111080.0,6.04792281]
[1760541889211,0.01911444,111090.0,111080.0,1.52238944]
[1760541889873,0.01911444,111090.0,111080.0,6.99685607]
[1760541890088,0.01911444,111090.0,111080.0,6.63710944]
[1760541890302,0.01911444,111090.0,111080.0,6.52238944]
[1760541891266,0.01911444,111090.0,111080.0,6.63710944]
[1760541891903,0.01911444,111090.0,111080.0,0.5278724]
[1760541892092,0.01911444,111090.0,111080.0,1.18238944]
[1760541892338,0.01911444,111090.0,111080.0,6.18238944]
[1760541892779,0.01911444,111090.0,111080.0,1.29710944]
[1760541892994,0.01911444,111090.0,111080.0,0.70792281]
[1760541893207,0.01911444,111090.0,111080.0,1.18238944]
[1760541893841,0.01911444,111090.0,111080.0,1.29706944]
[1760541894055,0.01911444,111090.0,111080.0,1.18238944]
[1760541894686,0.01911444,111090.0,111080.0,1.29706944]
[1760541894904,0.01911444,111090.0,111080.0,1.18238944]
[1760541895122,0.01911444,111090.0,111080.0,1.29706944]
[1760541895348,0.01911444,111090.0,111080.0,1.18238944]
[1760541895610,0.01911444,111090.0,111080.0,1.29706944]
[1760541895848,0.01911444,111090.0,111080.0,0.70792281]
[1760541896088,0.01911444,111090.0,111080.0,0.69636281]
[1760541896798,0.01911444,111090.0,111080.0,0.81104281]
[1760541897035,0.01911444,111090.0,111080.0,0.69636281]
[1760541897750,0.19914864,111090.0,111080.0,0.5163124]
[1760541897995,0.01911444,111090.0,111080.0,0.69636281]
[1760541898320,0.01911444,111090.0,111080.0,1.17082944]
[1760541898563,0.01911444,111090.0,111080.0,1.28550944]
[1760541899056,0.01911444,111090.0,111080.0,1.17082944]
[1760541899552,0.01911444,111090.0,111080.0,0.69636281]
[1760541899797,0.01911444,111090.0,111080.0,1.17082944]
[1760541900303,0.19914864,111090.0,111080.0,0.5163124]
[1760541900524,0.19914864,111090.0,111080.0,0.402]
[1760541900715,0.19914864,111090.0,111080.0,0.002]
[1760541901194,0.01911444,111090.0,111080.0,0.30692281]
[1760541901413,0.01911444,111090.0,111080.0,0.78138944]
[1760541902099,0.01911444,111090.0,111080.0,0.42160281]
[1760541902318,0.01911444,111090.0,111080.0,0.78138944]
[1760541902810,0.01911444,111090.0,111080.0,0.30692281]
[1760541903030,0.01911444,111090.0,111080.0,0.89606944]
[1760541903249,0.01911444,111090.0,111080.0,0.78238944]
[1760541904355,0.01911444,111090.0,111080.0,0.1278724]
[1760541904589,0.21906268,111090.0,111080.0,0.1278724]
[1760541904814,0.19914864,111090.0,111080.0,0.5278724]
[1760541905255,0.19914864,111090.0,111080.0,0.6425524]
[1760541905484,0.19914864,111090.0,111080.0,0.402]
[1760541905764,0.19914864,111090.0,111080.0,0.002]
[1760541905994,0.28451276,111090.0,111080.0,0.001]
[1760541906221,1.09897939,111090.0,111080.0,0.002]
[1760541906441,0.62451276,111090.0,111080.0,0.002]
[1760541906886,0.62451276,111090.0,111080.0,0.001]
[1760541907111,0.62451276,111090.0,111080.0,0.002]
[1760541907566,0.62451276,111090.0,111080.0,0.001]
[1760541907786,0.53914864,111090.0,111080.0,0.001]
[1760541909880,0.19914864,111090.0,111080.0,0.1268724]
[1760541910112,0.01911444,111090.0,111080.0,0.42160281]
[1760541910386,0.19914864,111090.0,111080.0,0.1268724]
[1760541910890,0.01911444,111090.0,111080.0,0.27074053]
[1760541911133,0.01911444,111090.0,111080.0,0.42160281]
[1760541911354,0.01911444,111090.0,111080.0,0.78138944]
[1760541911797,0.01911444,111090.0,111080.0,1.59585607]
[1760541912041,0.01911444,111090.0,111080.0,6.99585607]
[1760541912491,0.01911444,111090.0,111080.0,7.11053607]
[1760541912715,0.00336134,111110.0,111100.0,6.43066691]
[1760541912947,0.00336134,111110.0,111100.0,6.93704224]
[1760541913165,0.00336134,111110.0,111100.0,7.05172224]
[1760541913416,0.00336134,111110.0,111100.0,6.93704224]
[1760541913630,0.00336134,111110.0,111100.0,7.33704224]
[1760541913851,0.00336134,111110.0,111100.0,7.51959387]
[1760541914081,0.00336134,111110.0,111100.0,6.94304872]
[1760541914314,0.00336134,111110.0,111100.0,7.05772872]
[1760541914547,0.00336134,111110.0,111100.0,7.41751535]
[1760541914781,0.00336134,111110.0,111100.0,7.41951535]
[1760541914999,0.00336134,111110.0,111100.0,7.41451535]
[1760541915224,0.00336134,111110.0,111100.0,7.52919535]
[1760541915444,0.00336134,111110.0,111100.0,7.41351535]
[1760541915670,0.00336134,111110.0,111100.0,7.41451535]
[1760541915938,0.00336134,111110.0,111100.0,7.52919535]
[1760541916148,0.00336134,111110.0,111100.0,7.41451535]
[1760541917269,0.0049096,111120.0,111110.0,0.55618408]
[1760541917495,0.0049096,111120.0,111110.0,7.05598968]
[1760541917953,0.0049096,111120.0,111110.0,7.56482968]
[1760541918189,1e-08,111150.0,111130.0,5.0]
[1760541918422,0.01574739,111190.0,111180.0,5.0]
[1760541918651,0.01574739,111190.0,111180.0,6.96186258]
[1760541919112,0.01574739,111190.0,111180.0,7.36186258]
[1760541919332,0.01574739,111190.0,111180.0,7.3369127]
[1760541919553,0.01574739,111190.0,111180.0,7.4515527]
[1760541919782,0.01973402,111210.0,111190.0,5.6905212]
[1760541920000,0.01973402,111210.0,111190.0,6.12021132]
[1760541920443,0.01973402,111210.0,111190.0,6.23485132]
[1760541920674,0.01973402,111210.0,111190.0,6.64556293]
[1760541921227,0.01973402,111210.0,111200.0,5.61603839]
[1760541921453,0.02059216,111220.0,111210.0,6.03048885]
[1760541921674,0.02202041,111230.0,111220.0,6.43047268]
[1760541921886,0.02202041,111230.0,111220.0,6.5201628]
[1760541922101,0.02202041,111230.0,111220.0,6.6347628]
[1760541922354,0.02202041,111230.0,111220.0,6.16029617]
[1760541922579,0.02319443,111230.0,111220.0,6.5201628]
[1760541922808,0.02319443,111230.0,111220.0,6.6347628]
[1760541923044,0.02319443,111230.0,111220.0,5.64569617]
[1760541923266,0.02319443,111230.0,111220.0,6.1201628]
[1760541923752,0.02348867,111240.0,111220.0,6.2347628]
[1760541923975,0.22719812,111270.0,111260.0,6.7559414]
[1760541923976,0.00131515,111270.0,111260.0,6.7559414]
[1760541924195,0.02968169,111280.0,111270.0,0.55592524]
[1760541924414,0.00269017,111280.0,111270.0,6.03039187]
[1760541924868,0.00269017,111280.0,111270.0,6.23500199]
[1760541925081,0.00269017,111280.0,111270.0,6.24864834]
[1760541925299,0.00269017,111280.0,111270.0,6.53372834]
[1760541925509,0.00269017,111280.0,111270.0,6.64864834]
[1760541926167,0.00269017,111280.0,111270.0,6.53372834]
[1760541926386,0.00269017,111280.0,111270.0,6.65064834]
[1760541926786,0.00269017,111280.0,111270.0,6.60301822]
[1760541926996,0.00269017,111280.0,111270.0,6.71793822]
[1760541927449,0.03142995,111290.0,111280.0,5.21590909]
[1760541927683,0.04235867,111320.0,111310.0,0.17967837]
[1760541927910,0.03742297,111330.0,111320.0,0.55584451]
[1760541927911,0.03033235,111330.0,111320.0,0.55584451]
[1760541928144,0.03033235,111330.0,111320.0,7.02001777]
[1760541928145,0.00334083,111330.0,111320.0,7.02001777]
[1760541928368,0.03897122,111340.0,111330.0,0.55582837]
[1760541928879,0.03897122,111340.0,111330.0,1.23522512]
[1760541929109,0.03897122,111340.0,111330.0,1.23518512]
[1760541929331,0.03897122,111340.0,111330.0,1.11998512]
[1760541929555,0.03897122,111340.0,111330.0,1.23618512]
[1760541930005,0.04542141,111340.0,111330.0,1.23618512]
[1760541930223,0.04542141,111340.0,111330.0,1.12198512]
[1760541930683,0.04542141,111340.0,111330.0,0.1278724]
[1760541930942,0.22505137,111340.0,111330.0,0.09169012]
[1760541931409,0.22505137,111340.0,111330.0,0.60233903]
[1760541931410,0.04542141,111340.0,111330.0,0.60233903]
[1760541931631,0.04542141,111340.0,111330.0,0.78098512]
[1760541931860,0.22505137,111340.0,111330.0,0.09069012]
[1760541932560,0.22505137,111340.0,111330.0,0.08969012]
[1760541932808,0.04206774,111360.0,111330.0,0.16244222]
[1760541933062,0.01509563,111360.0,111350.0,0.08969012]
[1760541933352,0.20056449,111360.0,111330.0,0.403]
[1760541933581,0.17961474,111350.0,111330.0,0.4]
[1760541933821,0.02245374,111340.0,111330.0,0.4]
[1760541934062,0.17961555,111350.0,111330.0,1.14380284]
[1760541934284,0.20367321,111360.0,111340.0,0.17962905]
[1760541934501,0.17961383,111350.0,111340.0,0.17962905]
[1760541934719,0.17961383,111350.0,111330.0,1.14380284]
[1760541934948,0.17962996,111340.0,111330.0,0.48969012]
[1760541935221,0.17961383,111350.0,111330.0,0.66933621]
[1760541935448,0.17961383,111350.0,111330.0,0.48969012]
[1760541935891,0.17961383,111350.0,111330.0,0.66933527]
[1760541936117,0.2020837,111340.0,111330.0,0.4]
[1760541936361,0.17962996,111340.0,111330.0,0.001]
[1760541936878,0.18859452,111350.0,111330.0,0.7448021]
[1760541937365,0.04361599,111370.0,111360.0,5.0]
[1760541937586,0.04361599,111370.0,111360.0,0.47446663]
[1760541937826,0.24565493,111370.0,111360.0,0.4]
[1760541938049,0.33971756,111370.0,111360.0,0.4]
[1760541938276,0.15967599,111370.0,111360.0,0.4]
[1760541938494,0.18208368,111370.0,111360.0,0.4]
[1760541938728,0.18208368,111370.0,111350.0,0.6540791]
[1760541938729,0.36166586,111370.0,111350.0,0.6540791]
[1760541938967,0.00117197,111360.0,111350.0,0.74376922]
[1760541939181,0.00117197,111360.0,111350.0,1.14376922]
[1760541939401,0.00117197,111360.0,111350.0,0.66930259]
[1760541939631,0.18076967,111360.0,111350.0,0.48969012]
[1760541939859,0.18076967,111360.0,111320.0,0.18864276]
[1760541939860,0.17961689,111350.0,111320.0,0.18864276]
[1760541940078,0.17961689,111350.0,111330.0,0.99986375]
[1760541940305,0.17961397,111350.0,111330.0,0.99986375]
[1760541940520,0.18857758,111360.0,111340.0,0.17962996]
[1760541940744,0.29605412,111350.0,111340.0,0.08969012]
[1760541940969,0.29605412,111350.0,111340.0,0.26932008]
[1760541941188,0.11644,111350.0,111340.0,0.26932008]
[1760541941416,0.29605383,111350.0,111340.0,0.26932008]
[1760541941687,0.11644,111350.0,111340.0,0.26932008]
[1760541941914,0.52857758,111360.0,111340.0,0.26932008]
[1760541942126,0.1164,111350.0,111340.0,0.26932008]
[1760541942353,0.29601383,111350.0,111340.0,0.09069012]
[1760541942854,0.29597383,111350.0,111340.0,0.001]
[1760541943305,0.17961383,111350.0,111340.0,0.001]
[1760541943777,0.29597383,111350.0,111340.0,0.001]
[1760541944261,0.17961383,111350.0,111340.0,0.001]
[1760541944489,0.29593383,111350.0,111340.0,0.001]
[1760541944710,0.23381743,111380.0,111370.0,5.55576385]
[1760541944711,0.01827892,111380.0,111370.0,5.55576385]
[1760541944956,0.01827892,111380.0,111370.0,6.40337568]
[1760541945171,0.01827892,111380.0,111370.0,6.68629568]
[1760541945825,0.01827892,111380.0,111370.0,0.48969012]
[1760541945826,0.19784437,111380.0,111370.0,0.48969012]
[1760541946266,0.17958974,111370.0,111350.0,0.03618228]
[1760541946479,0.17958974,111370.0,111360.0,0.08969012]
[1760541946694,0.29670974,111370.0,111360.0,0.08969012]
[1760541946911,0.17958974,111370.0,111360.0,0.08969012]
[1760541947137,0.29842754,111370.0,111360.0,0.08969012]
[1760541947799,0.29842754,111370.0,111360.0,0.09069012]
[1760541948058,0.18134754,111370.0,111360.0,0.09069012]
[1760541948272,0.29838754,111370.0,111360.0,0.08969012]
[1760541948500,0.18134754,111370.0,111360.0,0.08969012]
[1760541948732,0.01827892,111380.0,111360.0,1.23297405]
[1760541949024,0.01827892,111380.0,111370.0,0.1258724]
[1760541949245,0.01827892,111380.0,111370.0,1.0359858]
[1760541949928,0.01827892,111380.0,111370.0,0.30545397]
[1760541950399,0.01827892,111380.0,111370.0,0.30645397]
[1760541951286,0.01827892,111380.0,111370.0,0.30745397]
[1760541951500,0.01827892,111380.0,111370.0,1.0379858]
[1760541952198,0.01827892,111380.0,111370.0,0.70745397]
[1760541952866,0.19784437,111380.0,111370.0,0.5278724]
[1760541953082,0.19284437,111380.0,111370.0,0.49169012]
[1760541953303,0.30988437,111380.0,111370.0,0.49169012]
[1760541953525,0.19284437,111380.0,111370.0,0.49169012]
[1760541953744,0.30988437,111380.0,111370.0,0.49169012]
[1760541953971,0.29656545,111380.0,111370.0,0.49069012]
[1760541954192,0.29656545,111380.0,111370.0,0.09169012]
[1760541954421,0.17956545,111380.0,111370.0,0.09169012]
[1760541954651,0.17956545,111380.0,111370.0,0.001]
[1760541954884,0.91068308,111380.0,111370.0,0.001]
[1760541955108,0.91068308,111380.0,111370.0,0.002]
[1760541955344,0.04826076,111400.0,111370.0,0.09169012]
[1760541955565,0.04826076,111400.0,111380.0,0.26925531]
[1760541955801,0.04826076,111400.0,111380.0,0.08969012]
[1760541955802,0.29662933,111390.0,111380.0,0.08969012]
[1760541956453,0.17954933,111390.0,111380.0,0.08969012]
[1760541956698,0.29662933,111390.0,111380.0,0.08969012]
[1760541957829,0.17956545,111380.0,111370.0,0.001]
[1760541958040,0.29660545,111380.0,111370.0,0.26927169]
[1760541958253,0.17956545,111380.0,111370.0,0.08969012]
[1760541958499,0.29656545,111380.0,111370.0,0.08969012]
[1760541958717,0.17956545,111380.0,111370.0,0.08969012]
[1760541958940,0.17956545,111380.0,111360.0,0.18854902]
[1760541958941,1.07470876,111380.0,111350.0,0.4]
[1760541959236,0.04826076,111400.0,111370.0,0.73053183]
[1760541959440,0.04826076,111400.0,111390.0,0.21573161]
[1760541959664,0.04826076,111400.0,111390.0,0.61573161]
[1760541960158,0.16538076,111400.0,111390.0,0.61573161]
[1760541960398,0.04826076,111400.0,111390.0,0.61573161]
[1760541960851,0.04826076,111400.0,111390.0,0.70542173]
[1760541961561,0.04826076,111400.0,111390.0,0.70642173]
[1760541961795,0.04826076,111400.0,111390.0,0.81426173]
[1760541964302,0.05290553,111430.0,111420.0,0.08969012]
[1760541964522,0.05290553,111430.0,111420.0,0.2691911]
[1760541964738,0.05290553,111430.0,111420.0,0.42337338]
[1760541964970,0.05290553,111430.0,111420.0,0.30537338]
[1760541965191,0.05290553,111430.0,111420.0,6.37590521]
[1760541965631,0.05290553,111430.0,111420.0,6.49386521]
[1760541966093,0.05290553,111430.0,111420.0,5.64537338]
[1760541966353,0.05290553,111430.0,111420.0,6.37690521]
[1760541966575,0.05290553,111430.0,111420.0,6.49482521]
[1760541966793,0.05290553,111430.0,111420.0,6.37690521]
[1760541967009,0.05290553,111430.0,111420.0,6.77890521]
[1760541967226,0.02593877,111430.0,111420.0,6.77890521]
[1760541967439,0.02593877,111430.0,111420.0,7.17890521]
[1760541967654,0.05445378,111440.0,111430.0,6.2500167]
[1760541967877,0.05445378,111440.0,111430.0,6.48404242]
[1760541968106,0.05929855,111470.0,111460.0,5.0]
[1760541968323,0.03235864,111470.0,111460.0,0.72692668]
[1760541968541,0.03235864,111470.0,111460.0,1.04530896]
[1760541968774,0.03235864,111470.0,111460.0,0.70530896]
[1760541969652,0.03235864,111470.0,111460.0,0.70730896]
[1760541969870,0.03235864,111470.0,111460.0,0.48969012]
[1760541970297,0.03235864,111470.0,111460.0,0.09069012]
[1760541970298,0.21177911,111470.0,111460.0,0.09069012]
[1760541970509,0.32985911,111470.0,111460.0,0.09169012]
[1760541971158,0.32985911,111470.0,111460.0,0.27012668]
[1760541971384,0.32977911,111470.0,111460.0,0.26912668]
[1760541971595,0.15035864,111470.0,111460.0,0.26912668]
[1760541971805,0.21177911,111470.0,111460.0,0.27012668]
[1760541972038,0.03235864,111470.0,111460.0,0.26912668]
[1760541972460,0.03235864,111470.0,111460.0,0.27012668]
[1760541972706,0.21177911,111470.0,111460.0,0.27012668]
[1760541972917,0.32973911,111470.0,111460.0,0.08969012]
[1760541973130,0.32969911,111470.0,111460.0,0.08969012]
[1760541973409,0.32969911,111470.0,111460.0,0.09069012]
[1760541974169,1.03199302,111470.0,111460.0,0.001]
[1760541974464,1.03199302,111470.0,111460.0,0.002]
[1760541974465,1.40019094,111470.0,111460.0,0.002]
[1760541974811,0.03235864,111470.0,111460.0,0.27012668]
[1760541975280,0.03235864,111470.0,111460.0,0.09069012]
[1760541975492,0.15047864,111470.0,111460.0,0.26912668]
[1760541975710,0.21177911,111470.0,111460.0,0.08969012]
[1760541975930,0.32989911,111470.0,111460.0,0.26912668]
[1760541976142,0.32989911,111470.0,111460.0,0.27012668]
[1760541976365,0.32989911,111470.0,111460.0,0.26912668]
[1760541976612,0.21177911,111470.0,111460.0,0.08969012]
[1760541976834,0.1794507,111460.0,111430.0,0.4]
[1760541977050,0.2974907,111460.0,111440.0,0.2691581]
[1760541977268,0.2974907,111460.0,111450.0,0.17945266]
[1760541977483,0.2974907,111460.0,111450.0,0.08969012]
[1760541978147,0.2974907,111460.0,111450.0,0.26914278]
[1760541978361,0.23127478,111460.0,111450.0,0.08969012]
[1760541978584,0.1794507,111460.0,111450.0,0.08969012]
[1760541978797,0.2974507,111460.0,111450.0,0.09069012]
[1760541979260,1.03145435,111460.0,111450.0,0.001]
[1760541979477,0.58045955,111480.0,111470.0,5.21560275]
[1760541979478,0.03410584,111480.0,111470.0,5.21560275]
[1760541979700,0.03410584,111480.0,111470.0,5.26911059]
[1760541979941,0.03410584,111480.0,111470.0,0.26911059]
[1760541980372,0.03410584,111480.0,111470.0,0.26411059]
[1760541980646,0.15226584,111480.0,111470.0,0.26411059]
[1760541981080,0.03410584,111480.0,111470.0,0.26411059]
[1760541981302,0.03410584,111480.0,111470.0,0.26511059]
[1760541981521,0.03410584,111480.0,111470.0,0.26411059]
[1760541981735,0.03410584,111480.0,111470.0,0.26611059]
[1760541981947,0.15222584,111480.0,111470.0,0.26611059]
[1760541982171,0.15222584,111480.0,111470.0,0.26511059]
[1760541982393,0.03410584,111480.0,111470.0,0.26511059]
[1760541982613,0.15218584,111480.0,111470.0,0.26511059]
[1760541983078,0.21351021,111480.0,111470.0,0.09069012]
[1760541983287,0.21351021,111480.0,111470.0,0.27011059]
[1760541983501,0.15214584,111480.0,111470.0,0.27011059]
[1760541983958,0.21351021,111480.0,111470.0,0.09069012]
[1760541984174,0.33151021,111480.0,111470.0,0.001]